Cogmind - Beta 10.2 *** ADVENTURER MODE // 2020.11.04 @ 21:53:49 // Halloween2020/ForbiddenLore Player: Plarzay Result: Self-destructed Performance ------------- Evolutions (5) 2500 Regions Visited (9) 1800 Robots Destroyed (104) 520 Value Destroyed (3941) 3941 Prototype IDs (4) 80 Alien Tech Used (0) 0 Bonus (419) 419 TOTAL SCORE: 9260 Bonus ------- High Alert Combat Kills 129 Follower Combat Kills 290 Cogmind --------- Core Integrity 862/1000 Matter 550/550 Energy 29/100 System Corruption 1% Temperature Cool (0) Movement Walking (150) Ox1 Location -5/Extension Parts ------- > --- POWER (2) -------- (None) > --- PROPULSION (3) --- Flexi-carbon Leg Flexi-carbon Leg > --- UTILITY (9) ------ Large Storage Unit High-capacity Storage Unit Matter Compressor Enhanced Optical Array Advanced Terrain Scan Processor Weapon Cycler Improved Core Shielding > --- WEAPON (3) ------- Spear > --- INVENTORY (18) --- Light Fission Core Armored Medium Treads Carbon-fiber Leg Carbon-fiber Leg Flexi-carbon Leg Gravmag System Gravmag System Improved Heat Sink Improved Heat Sink Improved Core Analyzer Microactuators Improved Maneuvering Thrusters Plasma Rifle Beamcaster Remote Datajack Peak State ------------ > --- POWER ------------ Improved Deuterium Engine F-cell Engine > --- PROPULSION ------- Flexi-carbon Leg Flexi-carbon Leg Myomer Leg > --- UTILITY ---------- Large Storage Unit High-capacity Storage Unit Matter Compressor Enhanced Optical Array Improved Signal Interpreter Long-range Terrain Scanner Advanced Terrain Scan Processor Weapon Cycler Improved Core Shielding > --- WEAPON ----------- Wave Gun Variable Charge Gun Bore Cannon > --- INVENTORY -------- Light Fission Core Armored Medium Treads Carbon-fiber Leg Carbon-fiber Leg Flexi-carbon Leg Gravmag System Gravmag System Improved Heat Sink Improved Heat Sink Improved Core Analyzer Microactuators Improved Maneuvering Thrusters Tesla Rifle Plasma Rifle Remote Datajack Spear [Rating: 81] Favorites ----------- Power Improved Deuterium Engine Engine Improved Deuterium Engine Power Core Nuclear Core Propulsion Aluminum Leg Treads Medium Treads Leg Aluminum Leg Utility Large Storage Unit Device Improved Terrain Scanner Storage Large Storage Unit Processor Improved Signal Interpreter Protection Hardened Medium Armor Plating Weapon Gauss Rifle Energy Gun Beam Rifle Ballistic Gun Gauss Rifle Ballistic Cannon Assault Cannon Launcher Missile Launcher Special Weapon Remote Datajack Piercing Weapon Spear Build | -11 -10 -10 -10 -9 -8 -7 -6 -5 -5 ------- Run | Scr Mat Min Exi Min Mat Fac Fac Fac Ext Slots Evolved 10 | . . . . . 4 2 2 2 . Power 1 | . . . . . . . . 1 . Propulsion 1 | . . . . . . . 1 . . Utility 7 | . . . . . 3 2 1 1 . Weapon 1 | . . . . . 1 . . . . Parts Attached 126 | 6 6 2 . 1 24 6 55 9 17 Power 16 | 1 . . . . 3 1 9 1 1 Engine 8 | 1 . . . . . 1 4 1 1 Core 8 | . . . . . 3 . 5 . . Reactor . | . . . . . . . . . . Propulsion 29 | 2 1 . . 1 6 . 14 1 4 Treads 6 | . . . . . . . 5 1 . Leg 23 | 2 1 . . 1 6 . 9 . 4 Wheel . | . . . . . . . . . . Hover . | . . . . . . . . . . Flight . | . . . . . . . . . . Utility 37 | 1 3 . . . 8 2 15 3 5 Device 11 | . . . . . 2 1 4 2 2 Storage 8 | 1 2 . . . 2 . 3 . . Processor 6 | . 1 . . . 1 1 1 1 1 Hackware . | . . . . . . . . . . Protection 12 | . . . . . 3 . 7 . 2 Artifact . | . . . . . . . . . . Weapon 44 | 2 2 2 . . 7 3 17 4 7 Energy Gun 14 | . . 1 . . 2 . 6 1 4 Energy Cannon . | . . . . . . . . . . Ballistic Gun 20 | 2 2 1 . . 4 2 6 3 . Ballistic Cannon 3 | . . . . . . . 2 . 1 Launcher 2 | . . . . . 1 . 1 . . Special Weapon 2 | . . . . . . 1 . . 1 Impact Weapon . | . . . . . . . . . . Slashing Weapon . | . . . . . . . . . . Piercing Weapon 3 | . . . . . . . 2 . 1 Special Melee Weapon . | . . . . . . . . . . Unidentified Prototypes 4 | . . . . . 2 . 2 . . Parts Lost 36 | . . . . . . . 24 1 11 Power 4 | . . . . . . . 2 . 2 Propulsion 8 | . . . . . . . 7 . 1 Utility 10 | . . . . . . . 5 . 5 Weapon 14 | . . . . . . . 10 1 3 Highest Loss Streak 15 | . . . . . . . 15 1 10 Average Slot Usage (%) 98 | . 98 100 100 100 100 100 95 100 98 Engine 7 | . 14 14 14 14 . 5 4 11 10 Core 2 | . . . . . 8 1 1 . . Treads 3 | . . . . . . . 6 17 6 Leg 16 | . 28 28 28 28 18 15 12 . 10 Device 8 | . . . . . 9 15 8 15 15 Storage 16 | . 14 14 14 14 18 15 16 17 17 Processor 13 | . 12 14 14 14 9 15 16 11 11 Protection 5 | . . . . . 9 7 7 6 4 Energy Gun 4 | . . 8 14 14 4 4 3 . 2 Ballistic Gun 15 | . 28 19 14 14 22 17 9 11 8 Naked Turns . | . . . . . . . . . . Heaviest Build 103 | 12 24 27 27 27 75 80 86 99 103 Greatest Support 83 | 20 20 20 20 20 40 40 76 83 83 Greatest Overweight (x) 22 | 1 1 1 1 1 2 1 22 1 2 Average Overweight (x) 1 | . . 1 1 1 1 1 1 1 1 Largest Inventory Capacity 18 | 6 10 10 10 10 18 18 18 18 18 Average Capacity 15 | 5 7 10 10 10 16 18 18 18 18 Most Carried 18 | 6 10 10 10 10 18 18 18 18 18 Average Carried 14 | 4 7 10 9 9 14 17 15 17 17 Final Capacity 18 | 6 10 10 10 10 18 18 18 18 18 Final Carried 18 | 6 10 10 10 10 18 18 18 18 15 Class Distribution -------------------- 32% | Mutant 18% | Scavenger-Skirmisher 17% | Scavenger-Tank 14% | Skirmisher 13% | Scavenger-Mutant 4% | Assassin Dominant Class ---------------- Mutant | -10/Materials Mutant | -10/Mines Mutant | -10/Exiles Mutant | -9/Mines Scavenger-Tank | -8/Materials Skirmisher | -7/Factory Scavenger-Tank | -6/Factory Scavenger-Skirmisher | -5/Factory Scavenger-Mutant | -5/Extension Resources | -11 -10 -10 -10 -9 -8 -7 -6 -5 -5 ----------- Run | Scr Mat Min Exi Min Mat Fac Fac Fac Ext Matter Collected 3596 | 236 258 62 . 22 687 193 1402 367 369 Remotely . | . . . . . . . . . . Salvage Created 4414 | . 326 151 . 74 990 349 1547 404 573 Parts 271 | . 24 10 . 3 67 26 92 28 21 Haulers Intercepted 6 | . 2 . . . 4 . . . . Recyclers Shooed 2 | . . . . . . . . . 2 Parts Field Recycled . | . . . . . . . . . . Retrieved Matter . | . . . . . . . . . . Parts Self-Destructed . | . . . . . . . . . . Prevented . | . . . . . . . . . . Kills | -11 -10 -10 -10 -9 -8 -7 -6 -5 -5 ------- Run | Scr Mat Min Exi Min Mat Fac Fac Fac Ext Combat Hostiles Destroyed 82 | . 10 5 . 2 10 7 29 9 10 Melee 6 | . . . . . . . 5 . 1 Guns 62 | . 10 5 . 2 10 7 14 7 7 Cannons 8 | . . . . . . . 4 2 2 AOE 6 | . . . . . . . 6 . . Classes Destroyed 12 | . 3 1 . . 4 1 3 . . Worker 4 | . . . . . . . 4 . . Builder 4 | . . . . . 1 1 2 . . Hauler 6 | . 2 . . . 4 . . . . Recycler 3 | . . . . . 2 . . . 1 Watcher 5 | . . . . . 4 . . 1 . Swarmer 21 | . 6 3 . . . 3 . 4 5 Grunt 19 | . 4 . . 2 4 . 7 . 2 Brawler 1 | . . . . . . . 1 . . Duelist 1 | . . . . . . . 1 . . Sentry 16 | . . 2 . . 3 3 6 . 2 Hunter 12 | . . . . . 3 . 6 3 . Programmer 12 | . . . . . . 1 8 2 1 Best Kill Streak 10 | . 3 3 . 2 5 4 10 5 4 Combat Bots Only 9 | . 3 3 . 2 2 4 9 4 4 Max Kills in Single Turn 2 | . 1 2 . 1 2 2 2 1 1 Gunslinging 1 | . . 1 . . . 1 1 . . Exploded 2 | . . . . . . . 2 . . Melee 1 | . . . . . . . 1 . 1 Uniques/NPCs Destroyed . | . . . . . . . . . . Combat | -11 -10 -10 -10 -9 -8 -7 -6 -5 -5 -------- Run | Scr Mat Min Exi Min Mat Fac Fac Fac Ext Damage Taken 8017 | . 274 129 . 50 608 303 4796 407 1450 Core 972 | . 38 23 . 8 106 8 651 50 88 Absorbed by Shields . | . . . . . . . . . . Core Remaining (%) 74 | 100 . . . 72 80 98 23 . . Volleys Fired 254 | . 46 8 . 4 54 15 78 19 30 Largest 3 | . 2 2 . 2 3 3 3 3 3 Hottest 213 | . 40 40 . 79 119 84 147 121 213 Shots Fired 605 | . 92 16 . 8 154 33 176 57 69 Gun 556 | . 92 16 . 8 153 32 151 41 63 Cannon 40 | . . . . . . . 20 16 4 Launcher 6 | . . . . . 1 . 5 . . Special 3 | . . . . . . 1 . . 2 Kinetic 524 | . 92 16 . 4 143 32 131 54 52 Thermal 37 | . . . . 4 10 . 16 . 7 Explosive 6 | . . . . . 1 . 5 . . Electromagnetic 35 | . . . . . . . 24 3 8 Robot Hit Streak 47 | . 17 10 . 11 47 8 24 22 32 Robot Miss Streak 7 | . 4 2 . 1 1 2 7 3 3 Penetration Max 1 | . . . . . 1 1 1 . . Secondary Targets 8 | . 1 2 . . 1 1 2 1 . Max Gunslinging Chain 1 | . 1 1 . . 1 1 1 1 . Shots Hit Robots 492 | . 67 12 . 6 119 22 172 43 51 Core Hits 262 | . 21 7 . 3 41 14 126 29 21 Critical Hits 11 | . 1 1 . . . 1 3 . 5 Critical Kills 7 | . . 1 . . . 1 2 . 3 Critical Parts Destroyed 4 | . 1 . . . . . 1 . 2 Melee Attacks 31 | . . . . . . . 28 . 3 Impact . | . . . . . . . . . . Slashing . | . . . . . . . . . . Piercing 31 | . . . . . . . 28 . 3 Sneak Attacks 1 | . . . . . . . 1 . . Combat Hostiles . | . . . . . . . . . . Follow-up Attacks . | . . . . . . . . . . Damage Inflicted 10345 | . 632 117 . 78 1818 540 5020 805 1335 Guns 7909 | . 631 117 . 78 1793 540 2960 684 1106 Cannons 514 | . . . . . . . 292 121 101 Explosions 1000 | . . . . . . . 1000 . . Melee 810 | . . . . . . . 739 . 71 Ramming 112 | . 1 . . . 25 . 29 . 57 Kinetic 7205 | . 631 117 . 34 1679 540 2543 755 906 Thermal 922 | . . . . 44 114 . 595 . 169 Explosive 806 | . . . . . . . 806 . . Electromagnetic 490 | . . . . . . . 308 50 132 Impact . | . . . . . . . . . . Slashing . | . . . . . . . . . . Piercing 810 | . . . . . . . 739 . 71 Highest Corruption 8 | . . . . . . 1 8 . 1 Average Corruption 3 | . . . . . . 1 3 . 1 Corruption Purged . | . . . . . . . . . . Effects 44 | . . . . . . 2 42 . . Message Errors 9 | . . . . . . . 9 . . Matter Fused 6 | . . . . . . . 6 . . Heat Flow Errors 4 | . . . . . . . 4 . . Energy Discharges 6 | . . . . . . 1 5 . . Parts Rejected 1 | . . . . . . . 1 . . Data Loss (minor) 5 | . . . . . . 1 4 . . Misfires 1 | . . . . . . . 1 . . Targeting Errors 12 | . . . . . . . 12 . . Overload Shots . | . . . . . . . . . . Overflow Damage 111 | . . . . . . . 106 . 5 Projectiles 23 | . . . . . . . 23 . . Explosions 83 | . . . . . . . 83 . . Melee 5 | . . . . . . . . . 5 Knockbacks 5 | . . . . . . . 3 1 1 Impact 1 | . . . . . . . . . 1 Kinetic 4 | . . . . . . . 3 1 . Secondary . | . . . . . . . . . . Self-Inflicted Damage 138 | . . . . . . . 116 . 22 Shots 4 | . . . . . . . 4 . . Rammed 4 | . . . . . . . 2 . 2 Targets Rammed 9 | . 2 . . 1 1 . 2 . 3 Kicked 5 | . 2 . . 1 1 . . . 1 Crushed . | . . . . . . . . . . Highest Temperature 461 | . 9 9 . 78 277 36 239 . 461 Average Temperature 81 | . 7 9 . 36 88 14 53 . 232 Received Heat Transfer 1422 | . 81 27 . 36 228 54 687 . 309 Effects 1 | . . . . . . . . . 1 Interference 1 | . . . . . . . . . 1 Siege Activations . | . . . . . . . . . . Robots Corrupted . | . . . . . . . . . . Combat Hostiles . | . . . . . . . . . . Parts Fried 2 | . . . . . . . 2 . . Impact Corruptions 1 | . . . . . . . . . 1 Robots Melted . | . . . . . . . . . . Combat Hostiles . | . . . . . . . . . . Parts Melted 5 | . . . . 1 1 . 2 . 1 Heat Transferred 1556 | . . . . 111 273 . 900 . 272 Parts Sabotaged . | . . . . . . . . . . Parts Stolen . | . . . . . . . . . . Parts Stripped . | . . . . . . . . . . Power Chain Reactions 1 | . . . . . . . 1 . . Missiles Intercepted . | . . . . . . . . . . Alert | -11 -10 -10 -10 -9 -8 -7 -6 -5 -5 ------- Run | Scr Mat Min Exi Min Mat Fac Fac Fac Ext Peak Influence 664 | . 167 186 . 74 297 156 664 457 325 Initial 229 | . . 52 . . 24 . 65 229 131 Average 156 | . 92 112 . 15 94 84 240 278 231 Maximum Alert Level 2 | . . . . . 1 . 2 2 1 Low Security (%) 73 | 100 100 100 . 100 95 100 59 . 30 Level 1 17 | . . . . . 4 . 11 86 69 Level 2 9 | . . . . . . . 28 13 . Level 3 . | . . . . . . . . . . Level 4 . | . . . . . . . . . . Level 5 . | . . . . . . . . . . High Security . | . . . . . . . . . . Max Security . | . . . . . . . . . . Squads Dispatched 17 | . 1 . . . 2 . 10 3 1 Investigation 4 | . 1 . . . 1 . 2 . . Extermination 4 | . . . . . . . 4 . . Reinforcement 7 | . . . . . 1 . 2 3 1 Assault 1 | . . . . . . . 1 . . Garrison 1 | . . . . . . . 1 . . Intercept . | . . . . . . . . . . Construction Impeded 2 | . . . . . . . 1 1 . Haulers Reinforced . | . . . . . . . . . . Stealth | -11 -10 -10 -10 -9 -8 -7 -6 -5 -5 --------- Run | Scr Mat Min Exi Min Mat Fac Fac Fac Ext Distress Signals 13 | . 3 . . . 2 1 3 3 1 Communications Jammed . | . . . . . . . . . . Distress Signals . | . . . . . . . . . . Times Spotted 138 | . 15 5 . 3 26 9 46 16 18 Peak Tracking Total 10 | . 5 3 . 3 4 4 10 5 5 Tactical Retreats 6 | . . . . . . . 4 1 1 Traps | -11 -10 -10 -10 -9 -8 -7 -6 -5 -5 ------- Run | Scr Mat Min Exi Min Mat Fac Fac Fac Ext Traps Triggered 7 | . . . . . . 2 3 . 2 Indirectly . | . . . . . . . . . . Trap Hack Attempts . | . . . . . . . . . . Triggered . | . . . . . . . . . . Disarmed . | . . . . . . . . . . Reprogrammed . | . . . . . . . . . . Reused . | . . . . . . . . . . Traps Extracted . | . . . . . . . . . . Installed . | . . . . . . . . . . Triggered . | . . . . . . . . . . Machines | -11 -10 -10 -10 -9 -8 -7 -6 -5 -5 ---------- Run | Scr Mat Min Exi Min Mat Fac Fac Fac Ext Machines Disabled 4 | . . 1 . . . . 2 . 1 Max in Single Turn 1 | . . 1 . . . . 1 . 1 Garrison Access 3 | . . . . . 1 . 1 1 . Machines Sabotaged . | . . . . . . . . . . Garrisons Compromised . | . . . . . . . . . . Overloaded Fab Kills . | . . . . . . . . . . Fab Network Shutdowns 1 | . . . . . . . 1 . . Hacking | -11 -10 -10 -10 -9 -8 -7 -6 -5 -5 --------- Run | Scr Mat Min Exi Min Mat Fac Fac Fac Ext Machines Accessed 22 | . 3 . 1 . 6 3 4 3 2 Terminals 14 | . 2 . . . 4 3 1 2 2 Fabricators 1 | . . . . . . . 1 . . Repair Stations 1 | . . . . . . . 1 . . Recycling Units 1 | . 1 . . . . . . . . Scanalyzers 1 | . . . . . 1 . . . . Garrison Access 3 | . . . . . 1 . 1 1 . Total Hacks 45 | . 9 . 1 . 11 8 8 4 4 Successful 28 | . 5 . 1 . 5 5 6 3 3 Failed 17 | . 4 . . . 6 3 2 1 1 Catastrophic 5 | . 1 . . . 2 1 1 . . Database Lockouts . | . . . . . . . . . . Manual 26 | . 9 . . . 7 7 1 2 . Terminals 32 | . 8 . . . 7 8 2 3 4 Fabricators 2 | . . . . . . . 2 . . Repair Stations 3 | . . . . . . . 3 . . Recycling Units 1 | . 1 . . . . . . . . Scanalyzers 2 | . . . . . 2 . . . . Garrison Access 4 | . . . . . 2 . 1 1 . Terminal Hacks 11 | . 2 . 1 . 1 1 2 1 3 Record 4 | . . . 1 . . . 1 . 2 Open Door 2 | . . . . . . . . 1 1 Level Access Points 1 | . . . . . . . 1 . . Branch Access Points 1 | . . . . . . 1 . . . Zone Layout 3 | . 2 . . . 1 . . . . Fabricator Hacks 1 | . . . . . . . 1 . . Build 1 | . . . . . . . 1 . . Repair Station Hacks 2 | . . . . . . . 2 . . Scan Component 1 | . . . . . . . 1 . . Repair 1 | . . . . . . . 1 . . Recycling Unit Hacks . | . . . . . . . . . . Scanalyzer 2 | . . . . . 2 . . . . Insert Component 1 | . . . . . 1 . . . . Analyze 1 | . . . . . 1 . . . . Garrison Access Hacks 4 | . . . . . 2 . 1 1 . Seal Access 3 | . . . . . 1 . 1 1 . Coupler Status 1 | . . . . . 1 . . . . Unauthorized Hacks 8 | . 3 . . . . 4 . 1 . Terminals 7 | . 2 . . . . 4 . 1 . Track 2 | . 1 . . . . 1 . . . Assimilate 1 | . . . . . . 1 . . . Botnet 4 | . 1 . . . . 2 . 1 . Fabricators . | . . . . . . . . . . Repair Stations . | . . . . . . . . . . Recycling Units 1 | . 1 . . . . . . . . Tunnel 1 | . 1 . . . . . . . . Scanalyzers . | . . . . . . . . . . Garrison Access . | . . . . . . . . . . Data Cores Recovered . | . . . . . . . . . . Used . | . . . . . . . . . . Hacking Detections 14 | . 2 . . . 4 3 3 1 1 Full Trace Events 4 | . 1 . . . 1 . 2 . . Feedback Events . | . . . . . . . . . . Feedback Blocked . | . . . . . . . . . . Robot Schematics Acquired . | . . . . . . . . . . Robots Built . | . . . . . . . . . . Matter . | . . . . . . . . . . Time . | . . . . . . . . . . Total Robot Build Rating . | . . . . . . . . . . Part Schematics Acquired 1 | . . . . . 1 . . . . Parts Built 2 | . . . . . . . 2 . . Matter 256 | . . . . . . . 256 . . Time 42 | . . . . . . . 42 . . Total Part Build Rating 16 | . . . . . . . 16 . . Parts Repaired 1 | . . . . . . . 1 . . Time 19 | . . . . . . . 19 . . Parts Recycled . | . . . . . . . . . . Recycled Matter . | . . . . . . . . . . Retrieved Matter . | . . . . . . . . . . Retrieved Components . | . . . . . . . . . . Parts Scanalyzed 1 | . . . . . 1 . . . . Part Schematics Acquired 1 | . . . . . 1 . . . . Parts Damaged . | . . . . . . . . . . Bothacking | -11 -10 -10 -10 -9 -8 -7 -6 -5 -5 ------------ Run | Scr Mat Min Exi Min Mat Fac Fac Fac Ext Used RIF Installer . | . . . . . . . . . . Robots Hacked 2 | . . . . . . 1 . . 1 Non-combat 1 | . . . . . . 1 . . . Combat 1 | . . . . . . . . . 1 Robot Hacks Applied 2 | . . . . . . 1 . . 1 parse_system 2 | . . . . . . 1 . . 1 Relay Couplers Released . | . . . . . . . . . . Robots Rewired 7 | . . . . . . . . . 7 Allies Hacked . | . . . . . . . . . . Hacks Repelled . | . . . . . . . . . . Allies | -11 -10 -10 -10 -9 -8 -7 -6 -5 -5 -------- Run | Scr Mat Min Exi Min Mat Fac Fac Fac Ext Total Allies 11 | . . . . 2 . 1 . . 8 Largest Group 5 | . . . . 2 2 1 1 . 5 Highest-Rated Group 167 | . . . . 40 40 10 10 . 167 Highest-Rated Ally 37 | . . . . 31 31 10 10 . 37 Total Orders . | . . . . . . . . . . Ally Attacks 49 | . . . . 3 30 . . . 16 Total Damage 847 | . . . . 61 500 . . . 286 Kills 8 | . . . . 1 5 . . . 2 Allies Corrupted 1 | . . . . . . . 1 . . Allies Melted . | . . . . . . . . . . Intel | -11 -10 -10 -10 -9 -8 -7 -6 -5 -5 ------- Run | Scr Mat Min Exi Min Mat Fac Fac Fac Ext Robot Analysis Total . | . . . . . . . . . . Derelict Logs Recovered 3 | . . 1 . 2 . . . . . Drone Launches 2 | . . . . . . . 2 . . Drone Recoveries . | . . . . . . . . . . Exploration | -11 -10 -10 -10 -9 -8 -7 -6 -5 -5 ------------- Run | Scr Mat Min Exi Min Mat Fac Fac Fac Ext Turns Passed 6598 | 78 554 490 282 369 1254 723 1811 490 547 Spaces Moved 3312 | 52 291 310 187 235 616 403 800 224 194 Core 10 | 8 . . . . . . 2 . . Treads 536 | . . . . . . . 275 224 37 Legs 2766 | 44 291 310 187 235 616 403 523 . 157 Wheels . | . . . . . . . . . . Hover . | . . . . . . . . . . Flight . | . . . . . . . . . . Fastest Speed 50 | 50 120 150 150 150 150 160 150 180 150 Average Speed 159 | 113 129 150 150 150 169 160 167 181 158 Slowest Speed 1150 | 120 150 150 150 150 180 160 1150 183 183 Overloaded Moves . | . . . . . . . . . . Propulsion Burnouts . | . . . . . . . . . . Robots Hopped . | . . . . . . . . . . Cave-ins Triggered . | . . . . . . . . . . Exploration Rate (%) 40 | 5 71 68 57 59 54 15 26 7 41 Regions Visited 9 Branch Regions 4 Pre-discovered Areas 2 | . 1 . 1 . . . . . . Known Exits Taken 4 | . . . . . 1 1 1 1 . Unknown Exits Taken 5 | 1 1 1 1 1 . . . . . Scrap Searched 4 | . . 2 . 2 . . . . . Spaces Dug 13 | . . . . . 12 . 1 . . Terrain Destroyed 51 | . . . . . 12 1 31 1 6 Melee 1 | . . . . . . . 1 . . Projectile 8 | . . . . . . 1 . 1 6 AOE 42 | . . . . . 12 . 30 . . Terrain Rammed . | . . . . . . . . . . Walls Destroyed . | . . . . . . . . . . Machines Disabled . | . . . . . . . . . . Actions | -11 -10 -10 -10 -9 -8 -7 -6 -5 -5 --------- Run | Scr Mat Min Exi Min Mat Fac Fac Fac Ext Total 4128 | 71 387 321 189 246 755 453 1073 265 368 Wait 117 | 2 27 . 1 1 3 19 58 . 6 Move 3303 | 51 290 309 186 234 615 402 799 223 194 Hop . | . . . . . . . . . . Pick Up 107 | 12 8 . 1 2 29 6 36 8 5 Fast Attach 12 | . 1 1 . . 1 . 6 . 3 Attach 49 | 6 . . . . 4 2 29 3 5 Detach . | . . . . . . . . . . Swap 66 | . 5 1 . 1 19 4 21 6 9 Drop 78 | . 8 2 1 3 29 5 16 6 8 Fire 254 | . 46 8 . 4 54 15 78 19 30 Melee 31 | . . . . . . . 28 . 3 Ram . | . . . . . . . . . . Kick 8 | . 2 . . 1 1 . 1 . 3 Crush 1 | . . . . . . . 1 . . Escape Stasis 10 | . . . . . . . . . 10 Rewire 92 | . . . . . . . . . 92 Trap . | . . . . . . . . . . Miscellaneous . | . . . . . . . . . . Route ------- -11/Scrapyard -10/Materials (discovered 3 exits: [*Mat x2] / [*Min]) -10/Mines (discovered 2 exits: [*Mat] / *Exi) -10/Exiles (discovered 2 exits: [*Min x2]) -9/Mines -8/Materials -7/Factory (discovered 3 exits: *Fac / *Low x2) -6/Factory (discovered 4 exits: *Fac x4) -5/Factory -5/Extension History --------- Turn | Location | Event 28 | -11/Scrapyard | Discovered new exit (range 15) 79 | -11/Scrapyard | Entered Materials 168 | -10/Materials | Discovered new exit (range 18) 194 | -10/Materials | Discovered new exit (range 17) 319 | -10/Materials | Build established: Mutant 466 | -10/Materials | Discovered new exit (range 15) 633 | -10/Materials | Entered Mines 775 | -10/Mines | Learned Materials interactive machine intel 961 | -10/Mines | Discovered new exit (range 9) 1117 | -10/Mines | Deemed a non-threat by the Exiles lab entrance 1117 | -10/Mines | Discovered new exit (range 5) 1123 | -10/Mines | Entered Exiles 1147 | -10/Exiles | Discovered new exit (range 17) 1161 | -10/Exiles | Met 8R-AWN 1185 | -10/Exiles | Met EX-HEX 1270 | -10/Exiles | Met EX-DEC 1306 | -10/Exiles | Learned location of Zion (-7) 1387 | -10/Exiles | Discovered new exit (range 15) 1405 | -10/Exiles | Entered Mines 1429 | -9/Mines | Received a Rocket Launcher from a helpful Derelict 1723 | -9/Mines | Discovered new exit (range 7) 1732 | -9/Mines | Learned Materials machine intel 1747 | -9/Mines | Learned Materials interactive machine intel 1774 | -9/Mines | Entered Materials 1774 | -8/Materials | Accompanied by 2 allies 1774 | -8/Materials | Evolved 4 slots: Utility x3, Weapon x1 1775 | -8/Materials | Loaded intel: 59 machine locations 1776 | -8/Materials | Loaded intel: 19 interactive machine locations 1779 | -8/Materials | Led the pair of lost Derelicts to an unsafe place 2219 | -8/Materials | Build established: Skirmisher 2624 | -8/Materials | Build established: Scavenger-Tank 2883 | -8/Materials | Discovered new exit (range 7) 3026 | -8/Materials | Identified exit to Factory 3028 | -8/Materials | Entered Factory 3028 | -7/Factory | Evolved 2 slots: Utility x2 3323 | -7/Factory | Build established: Skirmisher 3481 | -7/Factory | Identified exit to Lower Caves 3730 | -7/Factory | Discovered new exit (range 13) 3750 | -7/Factory | Identified exit to Factory 3751 | -7/Factory | Entered another Factory area 3751 | -6/Factory | Accompanied by 1 ally 3751 | -6/Factory | Evolved 2 slots: Propulsion x1, Utility x1 3868 | -6/Factory | Build established: Scavenger-Skirmisher 4126 | -6/Factory | Identified exit to Factory 4379 | -6/Factory | Repaired Hrd. Medium Armor Plating 4514 | -6/Factory | Lost 15 parts (1p4n4u6w) 4519 | -6/Factory | Destroyed 9 combat bots 4554 | -6/Factory | Core integrity fell below 50% 4584 | -6/Factory | Lost 3 parts (1n1u1w) 4867 | -6/Factory | Build established: Scavenger-Mutant 4910 | -6/Factory | Fabricated Adv. Heavy Treads? 4993 | -6/Factory | Lost 4 parts (2n2w) 5043 | -6/Factory | Local fabrication network quarantined 5151 | -6/Factory | First assault squad dispatched 5273 | -6/Factory | Build established: Scavenger-Tank 5429 | -6/Factory | Garrison activated, responded to threat 5562 | -6/Factory | Entered another Factory area 5562 | -5/Factory | Evolved 2 slots: Power x1, Utility x1 5997 | -5/Factory | Build established: Scavenger-Skirmisher 6045 | -5/Factory | Discovered new exit (range 6) 6050 | -5/Factory | Identified exit to Extension 6052 | -5/Factory | Entered Extension 6324 | -5/Extension | Rescued a captive Derelict 6477 | -5/Extension | Build established: Scavenger-Mutant 6549 | -5/Extension | Spotted B-75 Beast 6562 | -5/Extension | Spotted B-75 Beast 6599 | -5/Extension | Self-destructed Last Messages --------------- 06578_ Acquired 3 matter. 06578_ Imp. Deuterium Engine destroyed. 06579_ F-cell Engine destroyed. 06579_ Lrn. Terrain Scanner destroyed. 06579_ Imp. Signal Interpreter destroyed. 06579_ Knocked back. 06580_ R-10 Processor collects Imp. Heat Sink. 06582_ Acquired Beamcaster. 06584_ R-10 Processor collects Lgt. Angular Momentum Engine. 06586_ Destroyed Hpw. Tractor Beam. 06586_ R-10 Processor suffers critical hit. 06586_ R-10 Processor destroyed. 06587_ R-10 Processor collects VTOL Module. 06589_ Acquired 3 matter. 06591_ Myomer Leg destroyed. 06594_ U-05 Engineer destroyed. 06594_ Bore Cannon destroyed. 06595_ Tesla Rifle destroyed. 06597_ P-70 Sage destroyed. 06598_ R-10 Processor destroyed. Map ----- +----------------------------------------------------+ | + !!* ##??#??######??????#?##????? | | = = # !*! #??##??#?#?##?? ?"??#??????? | | # ! ! ###??######## ??????????? | | / + * ##?###?#?##?# ?"""#???????? | | # ###????####? ###? ?????? | | +###### #??#??######? ?#?## ??????? | | #???## #####?#######?+##??#???????? | | ##??## """"""" #?#####??# ? ???????? | | ###### """"""" ###?####?# ? ?????? | | #### ########## ? ? ???? | | #### #### ###??##### ????? | | ??#### ###? ##########?? ?#???? | | #?##### #### ####??#### #?#??? | | #########?# #?## ###?###?## ? ?????? | | ###?####?## #### ###??###?# ???#???? | | ###??####?########## #### #?#?######? ? ??#??? | | ?#?############?##?# #### ###?###### ? ??##?#?? | | ####?#?#####?##??### ##?# #?########?? ?##??? | | ?####???#?##########/#### ###??##### ????##??? | | ##?######?#?###### !#=######?### ####?? | | ##########??###### = #=####?#??#????#?#######?? | | ??##?#######?##### /%###?###?## #####?##????? | | ?######?#?####?###/// ! #%#?####?##??##?###??#?#?? | | ?#?#?####?########/^/ #=######?### #?##?##??###? | | ?###??###?########/// ! #!;#####?#?# ##??#??##??#? | | #?#?#?#####?#?###########@;#######?#??#?#?##??##?# | | ###??##########?#########%!=###?#??# ##?###??##?## | | ?###?#####?####?#?#######*|%; ## ### ##?#??#?###?? | | ??###??######?##?###### |w=u!* "" ""########??? | | ?#?#?####??##??###?###*%==*%= " ##?####?#?? | | ????#?#?#?######?###### %==%[ #?#?###?##? | | ??##?#?#???##?###??#??# [*! ##?#??####? | | ?##?####?##??#??###??## #?#?#???#?# | | ??? ? ? ? ? ?? ? ? | | ???? ? ? ? ? ? | | ?????? ?? ? ? ??? BB BB ??? ??? | | ???? ? ? ? ? ?? ? BB BB ? ? ? | | ?????? ?? ? R ????? ? ? | | ????##?#?#??#???####### ??##?####?? | | ???????##?##??##?#???## ?#?#?#?#?#?? | | ???????###?#?#????##### ?###?#????? | | ???????##?#???#?#??#?## ???##???????? | | ??????#??#?#?##?#??##?# ? ????#???????? | | ?????????#?#??##?###########T#"????#??#???####???? | | ?????????#???#?###?#?#?####?#??????##????#???????? | | ??????????##??#??###?#?#########?##?#?##???#?????? | | | | | | | | | +----------------------------------------------------+ Best States ------------- Heat Dissipation 81 Energy Generation 30 Energy Capacity 690 Matter Stores 550 Matter Capacity 550 Sight Range 22 Robot Scan Range 13 Terrain Scan Range 24 Terrain Scan Density 210 Armor Coverage 300 Resistance: KI 20 Resistance: TH 30 Resistance: EX 20 Resistance: EM 20 Resistance: I 20 Resistance: S 20 Resistance: P 20 Core Shielding 30 Weapon Cycling 15 Evasion (%) 40 Recoil Reduction 3 Kinecelleration 30 Offensive Hacking 10 Item Schematics ----------------- Missile Launcher | -8/Materials | Scanalyzed Robot Schematics ------------------ None Fabricated ------------ Adv. Heavy Treads | x2 | -6/Factory | Preloaded Alien Tech Used ----------------- None Achievements -------------- Brute Force Omniscient Cartographer Challenges ------------ None Game ------ Seed SystemHackingMagmablaster Manual? 0 Play Time 01:23:11 Cumulative 55.2 hours Start 2020.11.04 @ 20:28:02 End 2020.11.04 @ 21:53:49 Sessions 1 Manual Loads 0 Difficulty Adventurer Special Mode Halloween2020/ForbiddenLore Game No. 42 Rogue 10 Adventurer 32 Explorer 0 Win Type - Total 0 Types 0/0/0/0/0/0/0/0/0 Lore% 34 Gallery% 48 Achievement% 38 Wizard Run 0 Options --------- ASCII 0 Keyboard 0 Movement Mouse Keybinds 0 Fullscreen 2 Font 18/SmallcapsGlow Map View 76x50 Tactical HUD 1 Map Filters NONE Filters NONE Steam 1 RUN: 71a55bd3-288b-4e09-a510-597d2e8bca02